Cogmind - Beta 10.2 @@@ ROGUE MODE // 2022.01.20 @ 17:06:00 Player: Ecllection Result: Destroyed by B-86 Titan with Railgun Performance ------------- Evolutions (6) 3000 Regions Visited (9) 1800 Robots Destroyed (60) 300 Value Destroyed (1870) 1870 Prototype IDs (1) 20 Alien Tech Used (0) 0 Bonus (204) 204 TOTAL SCORE: 7194 Bonus ------- High Alert Combat Kills 45 Follower Combat Kills 159 Cogmind --------- Core Integrity 0/1150 Matter 253/300 Energy 98/100 System Corruption 8% Temperature Cool (9) Movement Core (50) Location -4/Upper Caves Parts ------- > --- POWER (4) -------- (None) > --- PROPULSION (4) --- (None) > --- UTILITY (7) ------ (None) > --- WEAPON (4) ------- (None) > --- INVENTORY (4) ---- Advanced Cryofiber Web Improved Coolant Injector Matter Neutralizer Peak State ------------ > --- POWER ------------ Light Antimatter Reactor > --- PROPULSION ------- Armored Medium Treads Improved Heavy Treads Wheel > --- UTILITY ---------- Improved Heat Sink Improved Coolant Injector > --- WEAPON ----------- Heavy Disruptor Cannon > --- INVENTORY -------- Advanced Cryofiber Web Improved Coolant Injector [Rating: 52] Favorites ----------- Power Ion Engine Engine Ion Engine Power Core Light Nuclear Core Reactor Light Antimatter Reactor Propulsion Light Treads Treads Light Treads Leg Carbon-fiber Leg Wheel Wheel Utility Hardened Medium Armor Plating Device Improved Heat Sink Storage Small Storage Unit Processor Advanced Signal Interpreter Protection Hardened Medium Armor Plating Weapon Medium Laser Energy Gun Medium Laser Energy Cannon Heavy Disruptor Cannon Ballistic Gun High-powered Shotgun Ballistic Cannon Light Cannon Launcher Rocket Launcher Piercing Weapon Spear Build | -11 -10 -10 -9 -8 -7 -6 -5 -4 -4 ------- Run | Scr Mat Min Mat Mat Fac Fac Fac Fac Upp Slots Evolved 12 | . . . 2 2 2 2 2 2 . Power 3 | . . . 1 1 . . . 1 . Propulsion 2 | . . . . . . 1 1 . . Utility 5 | . . . 1 1 1 . 1 1 . Weapon 2 | . . . . . 1 1 . . . Parts Attached 103 | 6 3 . 22 22 2 37 3 8 . Power 19 | 1 . . 3 7 . 7 . 1 . Engine 9 | 1 . . 3 2 . 3 . . . Core 9 | . . . . 5 . 4 . . . Reactor 1 | . . . . . . . . 1 . Propulsion 27 | 2 . . 5 7 . 9 1 3 . Treads 7 | 2 . . 2 1 . . . 2 . Leg 16 | . . . 1 6 . 9 . . . Wheel 4 | . . . 2 . . . 1 1 . Hover . | . . . . . . . . . . Flight . | . . . . . . . . . . Utility 24 | 2 1 . 4 5 1 9 . 2 . Device 12 | 1 . . 1 2 1 5 . 2 . Storage 3 | 1 1 . . 1 . . . . . Processor 1 | . . . . . . 1 . . . Hackware . | . . . . . . . . . . Protection 8 | . . . 3 2 . 3 . . . Artifact . | . . . . . . . . . . Weapon 33 | 1 2 . 10 3 1 12 2 2 . Energy Gun 21 | 1 1 . 7 3 1 8 . . . Energy Cannon 3 | . . . . . . 1 . 2 . Ballistic Gun 2 | . . . . . . 2 . . . Ballistic Cannon 1 | . 1 . . . . . . . . Launcher 5 | . . . 3 . . 1 1 . . Special Weapon . | . . . . . . . . . . Impact Weapon . | . . . . . . . . . . Slashing Weapon . | . . . . . . . . . . Piercing Weapon 1 | . . . . . . . 1 . . Special Melee Weapon . | . . . . . . . . . . Unidentified Prototypes 1 | . . . . . . 1 . . . Parts Lost 46 | . 2 . 6 3 . 20 8 7 . Power 9 | . . . 2 1 . 5 . 1 . Propulsion 12 | . . . 2 1 . 3 3 3 . Utility 10 | . 1 . 2 . . 5 1 1 . Weapon 15 | . 1 . . 1 . 7 4 2 . Highest Loss Streak 10 | . 2 . 4 2 . 10 6 7 . Average Slot Usage (%) 74 | . 89 85 85 92 100 85 54 28 . Engine 8 | . 14 14 20 14 15 3 . . . Core 5 | . . . . 6 7 13 . . . Treads 6 | . 28 28 15 3 . . . 7 . Leg 8 | . . . . 14 15 14 14 . . Wheel 1 | . . . 4 . . . . 4 . Device 9 | . 6 . 2 8 15 15 16 8 . Storage 6 | . 14 14 11 9 7 6 4 . . Protection 7 | . . . 8 18 15 4 . . . Energy Gun 13 | . 12 14 18 17 23 16 4 . . Ballistic Gun 1 | . . . . . . 4 . . . Ballistic Cannon 1 | . 12 14 1 . . . . . . Naked Turns 235 | . . . . . . . 6 16 213 Heaviest Build 73 | 12 19 17 44 64 68 73 33 30 . Greatest Support 102 | 40 40 40 40 40 32 50 50 102 3 Greatest Overweight (x) 9 | . . . 9 2 2 3 1 3 . Average Overweight (x) . | . . . . 1 2 1 . . . Largest Inventory Capacity 10 | 6 8 8 8 10 10 10 10 4 4 Average Capacity 7 | 5 7 8 8 8 10 10 9 4 4 Most Carried 10 | 2 3 2 8 10 9 10 4 4 3 Average Carried 3 | . 1 2 6 8 8 6 2 1 2 Final Capacity 10 | 6 8 8 8 10 10 10 4 4 4 Final Carried 9 | 1 2 2 7 9 9 2 2 2 3 Class Distribution -------------------- 78% | Mutant 8% | Tank 7% | Scavenger-Skirmisher 3% | Scavenger-Mutant Dominant Class ---------------- Mutant | -10/Materials Mutant | -10/Mines Mutant | -9/Materials Mutant | -8/Materials Tank | -7/Factory Scavenger-Skirmisher | -6/Factory Scavenger-Mutant | -5/Factory Mutant | -4/Factory Mutant | -4/Upper Caves Resources | -11 -10 -10 -9 -8 -7 -6 -5 -4 -4 ----------- Run | Scr Mat Min Mat Mat Fac Fac Fac Fac Upp Matter Collected 1449 | 260 128 . 277 283 . 447 28 . 26 Remotely . | . . . . . . . . . . Salvage Created 1973 | . 153 . 482 795 . 515 28 . . Parts 143 | . 22 . 41 45 . 29 6 . . Haulers Intercepted . | . . . . . . . . . . Recyclers Shooed 3 | . . . . . . 3 . . . Parts Field Recycled . | . . . . . . . . . . Retrieved Matter . | . . . . . . . . . . Parts Self-Destructed . | . . . . . . . . . . Prevented . | . . . . . . . . . . Kills | -11 -10 -10 -9 -8 -7 -6 -5 -4 -4 ------- Run | Scr Mat Min Mat Mat Fac Fac Fac Fac Upp Combat Hostiles Destroyed 42 | . 8 . 12 13 . 9 . . . Guns 24 | . 3 . 2 10 . 9 . . . Cannons 6 | . 5 . 1 . . . . . . AOE 9 | . . . 8 1 . . . . . Classes Destroyed 14 | . 3 . 5 2 . 3 1 . . Worker 2 | . . . 2 . . . . . . Builder 5 | . . . 2 1 . 1 1 . . Tunneler 1 | . . . . . . . 1 . . Recycler 2 | . . . 2 . . . . . . Mechanic 1 | . . . 1 . . . . . . Watcher 7 | . 2 . 2 2 . 1 . . . Swarmer 13 | . 6 . 7 . . . . . . Grunt 12 | . 2 . 1 7 . 2 . . . Brawler 1 | . . . . . . 1 . . . Duelist 3 | . . . . 1 . 2 . . . Sentry 9 | . . . 4 3 . 2 . . . Demolisher 1 | . . . . . . 1 . . . Hunter 2 | . . . . 2 . . . . . Programmer 1 | . . . . . . 1 . . . Best Kill Streak 5 | . 5 . 5 3 . 2 2 . . Combat Bots Only 5 | . 5 . 4 3 . 2 . . . Max Kills in Single Turn 4 | . 1 . 4 1 . 2 1 . . Gunslinging . | . . . . . . . . . . Exploded 3 | . . . 3 1 . . . . . Melee . | . . . . . . . . . . Uniques/NPCs Destroyed . | . . . . . . . . . . Combat | -11 -10 -10 -9 -8 -7 -6 -5 -4 -4 -------- Run | Scr Mat Min Mat Mat Fac Fac Fac Fac Upp Damage Taken 7521 | 164 382 . 667 1227 . 1936 616 1697 832 Core 1907 | 24 105 . 104 197 . 205 113 327 832 Absorbed by Shields . | . . . . . . . . . . Core Remaining (%) 77 | 90 . 48 74 64 100 75 88 . . Volleys Fired 170 | 4 27 . 31 53 . 39 9 7 . Largest 4 | 1 2 . 2 2 . 4 1 1 . Hottest 276 | 50 85 . 130 115 . 276 69 110 . Shots Fired 333 | 4 43 . 60 91 . 119 9 7 . Gun 274 | 4 16 . 48 91 . 109 6 . . Cannon 41 | . 27 . 1 . . 6 . 7 . Launcher 18 | . . . 11 . . 4 3 . . Special . | . . . . . . . . . . Kinetic 55 | . 27 . 1 . . 27 . . . Thermal 105 | 4 16 . 31 15 . 32 6 1 . Explosive 18 | . . . 11 . . 4 3 . . Electromagnetic 155 | . . . 17 76 . 56 . 6 . Robot Hit Streak 14 | 4 8 . 13 8 . 14 5 4 . Robot Miss Streak 8 | . 2 . 6 8 . 4 1 1 . Penetration Max . | . . . . . . . . . . Secondary Targets . | . . . . . . . . . . Shots Hit Robots 213 | 4 26 . 33 59 . 76 10 5 . Core Hits 105 | 1 11 . 28 27 . 29 6 3 . Critical Hits 4 | . 2 . . 1 . 1 . . . Critical Kills . | . . . . . . . . . . Critical Parts Destroyed 4 | . 2 . . 1 . 1 . . . Melee Attacks 2 | . . . . . . . 2 . . Impact . | . . . . . . . . . . Slashing . | . . . . . . . . . . Piercing 2 | . . . . . . . 2 . . Sneak Attacks . | . . . . . . . . . . Combat Hostiles . | . . . . . . . . . . Follow-up Attacks . | . . . . . . . . . . Damage Inflicted 5535 | 51 339 . 1697 1462 . 1586 213 187 . Guns 2854 | 51 88 . 399 990 . 1231 95 . . Cannons 472 | . 251 . 16 . . 25 . 180 . Explosions 2117 | . . . 1282 472 . 295 68 . . Melee 50 | . . . . . . . 50 . . Ramming 42 | . . . . . . 35 . 7 . Kinetic 632 | . 251 . 16 . . 365 . . . Thermal 2125 | 51 88 . 734 613 . 509 95 35 . Explosive 951 | . . . 737 . . 146 68 . . Electromagnetic 1735 | . . . 210 849 . 531 . 145 . Impact . | . . . . . . . . . . Slashing . | . . . . . . . . . . Piercing 50 | . . . . . . . 50 . . Highest Corruption 9 | . . . . . . 9 1 5 8 Average Corruption 5 | . . . . . . 6 1 3 6 Corruption Purged . | . . . . . . . . . . Effects 36 | . . . . . . 26 1 2 7 Message Errors 6 | . . . . . . 4 1 . 1 Matter Fused 8 | . . . . . . 5 . 1 2 Heat Flow Errors 3 | . . . . . . 2 . . 1 Energy Discharges 7 | . . . . . . 6 . 1 . Data Loss (minor) 5 | . . . . . . 3 . . 2 Data Loss (major) 2 | . . . . . . 1 . . 1 Targeting Errors 4 | . . . . . . 4 . . . Weapon Failures 1 | . . . . . . 1 . . . Overload Shots . | . . . . . . . . . . Overflow Damage 393 | . . . 273 25 . 85 9 1 . Projectiles 1 | . . . . . . . . 1 . Explosions 392 | . . . 273 25 . 85 9 . . Melee . | . . . . . . . . . . Knockbacks 4 | . 3 . . . . 1 . . . Impact 1 | . . . . . . 1 . . . Kinetic 3 | . 3 . . . . . . . . Secondary . | . . . . . . . . . . Self-Inflicted Damage 636 | . . . 137 164 . 193 142 . . Shots 16 | . . . 5 4 . 4 3 . . Rammed 12 | . . . . . . 2 . 10 . Targets Rammed 13 | . . . . . . 3 . 10 . Kicked 1 | . . . . . . 1 . . . Crushed . | . . . . . . . . . . Highest Temperature 568 | 40 75 . 410 453 . 568 3 28 79 Average Temperature 167 | 20 37 . 128 191 . 213 3 14 57 Received Heat Transfer 786 | . 60 . 129 72 . 300 72 108 45 Effects 50 | . . . 2 20 . 28 . . . Shutdowns 26 | . . . 1 12 . 13 . . . Energy Bleed 6 | . . . 1 3 . 2 . . . Interference 7 | . . . . 2 . 5 . . . Matter Decay 1 | . . . . 1 . . . . . Short Circuit 5 | . . . . 1 . 4 . . . Damage (minor) 2 | . . . . 1 . 1 . . . Damage (major) 3 | . . . . . . 3 . . . Siege Activations . | . . . . . . . . . . Robots Corrupted 3 | . . . 1 2 . . . . . Combat Hostiles 3 | . . . 1 2 . . . . . Parts Fried 4 | . . . 4 . . . . . . Impact Corruptions . | . . . . . . . . . . Robots Melted . | . . . . . . . . . . Combat Hostiles . | . . . . . . . . . . Parts Melted 8 | . . . 3 . . 5 . . . Heat Transferred 3052 | 148 212 . 819 783 . 868 185 37 . Parts Sabotaged . | . . . . . . . . . . Parts Stolen . | . . . . . . . . . . Parts Stripped . | . . . . . . . . . . Power Chain Reactions 8 | . . . . 6 . 2 . . . Missiles Intercepted . | . . . . . . . . . . Alert | -11 -10 -10 -9 -8 -7 -6 -5 -4 -4 ------- Run | Scr Mat Min Mat Mat Fac Fac Fac Fac Upp Peak Influence 497 | . 259 22 497 465 133 179 29 15 . Initial 165 | . . 22 8 165 133 65 14 . . Average 80 | . 101 22 293 272 133 73 19 . . Maximum Alert Level 2 | . 1 . 2 2 . . . . . Low Security (%) 82 | 100 74 100 27 17 100 100 100 100 . Level 1 15 | . 25 . 44 77 . . . . . Level 2 2 | . . . 28 4 . . . . . Level 3 . | . . . . . . . . . . Level 4 . | . . . . . . . . . . Level 5 . | . . . . . . . . . . High Security . | . . . . . . . . . . Max Security . | . . . . . . . . . . Squads Dispatched 18 | . 1 . 1 4 . 9 . 3 . Investigation 1 | . . . . 1 . . . . . Extermination 3 | . . . . . . 2 . 1 . Reinforcement 10 | . 1 . 1 3 . 4 . 1 . Assault . | . . . . . . . . . . Garrison 4 | . . . . . . 3 . 1 . Intercept . | . . . . . . . . . . Construction Impeded 2 | . . . 1 1 . . . . . Haulers Reinforced 1 | . . . . . . 1 . . . Stealth | -11 -10 -10 -9 -8 -7 -6 -5 -4 -4 --------- Run | Scr Mat Min Mat Mat Fac Fac Fac Fac Upp Distress Signals 4 | . 1 . . . . 2 . 1 . Communications Jammed 1 | . . . . . . 1 . . . Distress Signals . | . . . . . . . . . . Times Spotted 90 | 1 15 . 18 20 . 21 1 11 3 Peak Tracking Total 8 | 1 5 . 5 4 . 3 1 8 2 Tactical Retreats 8 | . 1 . 2 1 . 3 . . 1 Traps | -11 -10 -10 -9 -8 -7 -6 -5 -4 -4 ------- Run | Scr Mat Min Mat Mat Fac Fac Fac Fac Upp Traps Triggered 8 | . . . . . . 6 1 1 . Indirectly . | . . . . . . . . . . Trap Hack Attempts . | . . . . . . . . . . Triggered . | . . . . . . . . . . Disarmed . | . . . . . . . . . . Reprogrammed . | . . . . . . . . . . Reused . | . . . . . . . . . . Traps Extracted . | . . . . . . . . . . Installed . | . . . . . . . . . . Triggered 2 | . . . . 1 . . . 1 . Machines | -11 -10 -10 -9 -8 -7 -6 -5 -4 -4 ---------- Run | Scr Mat Min Mat Mat Fac Fac Fac Fac Upp Machines Disabled 15 | . . . 14 1 . . . . . Max in Single Turn 13 | . . . 13 1 . . . . . Machines Sabotaged . | . . . . . . . . . . Garrisons Compromised 1 | . . . . . . 1 . . . Overloaded Fab Kills . | . . . . . . . . . . Fab Network Shutdowns . | . . . . . . . . . . Hacking | -11 -10 -10 -9 -8 -7 -6 -5 -4 -4 --------- Run | Scr Mat Min Mat Mat Fac Fac Fac Fac Upp Machines Accessed . | . . . . . . . . . . Terminals . | . . . . . . . . . . Fabricators . | . . . . . . . . . . Repair Stations . | . . . . . . . . . . Recycling Units . | . . . . . . . . . . Scanalyzers . | . . . . . . . . . . Garrison Access . | . . . . . . . . . . Total Hacks . | . . . . . . . . . . Successful . | . . . . . . . . . . Failed . | . . . . . . . . . . Catastrophic . | . . . . . . . . . . Database Lockouts . | . . . . . . . . . . Manual . | . . . . . . . . . . Terminals . | . . . . . . . . . . Fabricators . | . . . . . . . . . . Repair Stations . | . . . . . . . . . . Recycling Units . | . . . . . . . . . . Scanalyzers . | . . . . . . . . . . Garrison Access . | . . . . . . . . . . Terminal Hacks . | . . . . . . . . . . Fabricator Hacks . | . . . . . . . . . . Repair Station Hacks . | . . . . . . . . . . Recycling Unit Hacks . | . . . . . . . . . . Scanalyzer . | . . . . . . . . . . Garrison Access Hacks . | . . . . . . . . . . Unauthorized Hacks . | . . . . . . . . . . Terminals . | . . . . . . . . . . Fabricators . | . . . . . . . . . . Repair Stations . | . . . . . . . . . . Recycling Units . | . . . . . . . . . . Scanalyzers . | . . . . . . . . . . Garrison Access . | . . . . . . . . . . Data Cores Recovered . | . . . . . . . . . . Used . | . . . . . . . . . . Hacking Detections . | . . . . . . . . . . Full Trace Events . | . . . . . . . . . . Feedback Events . | . . . . . . . . . . Feedback Blocked . | . . . . . . . . . . Robot Schematics Acquired . | . . . . . . . . . . Robots Built . | . . . . . . . . . . Matter . | . . . . . . . . . . Time . | . . . . . . . . . . Total Robot Build Rating . | . . . . . . . . . . Part Schematics Acquired . | . . . . . . . . . . Parts Built . | . . . . . . . . . . Matter . | . . . . . . . . . . Time . | . . . . . . . . . . Total Part Build Rating . | . . . . . . . . . . Parts Repaired . | . . . . . . . . . . Time . | . . . . . . . . . . Parts Recycled . | . . . . . . . . . . Recycled Matter . | . . . . . . . . . . Retrieved Matter . | . . . . . . . . . . Retrieved Components . | . . . . . . . . . . Parts Scanalyzed . | . . . . . . . . . . Part Schematics Acquired . | . . . . . . . . . . Parts Damaged . | . . . . . . . . . . Bothacking | -11 -10 -10 -9 -8 -7 -6 -5 -4 -4 ------------ Run | Scr Mat Min Mat Mat Fac Fac Fac Fac Upp Used RIF Installer . | . . . . . . . . . . Robots Hacked . | . . . . . . . . . . Non-combat . | . . . . . . . . . . Combat . | . . . . . . . . . . Robot Hacks Applied . | . . . . . . . . . . Relay Couplers Released . | . . . . . . . . . . Robots Rewired . | . . . . . . . . . . Allies Hacked . | . . . . . . . . . . Hacks Repelled . | . . . . . . . . . . Allies | -11 -10 -10 -9 -8 -7 -6 -5 -4 -4 -------- Run | Scr Mat Min Mat Mat Fac Fac Fac Fac Upp Total Allies 3 | . . . . . . 3 . . . Largest Group 3 | . . . . . . 3 . . . Highest-Rated Group 93 | . . . . . . 93 . . . Highest-Rated Ally 31 | . . . . . . 31 . . . Total Orders . | . . . . . . . . . . Ally Attacks 41 | . . . . . . 41 . . . Total Damage 689 | . . . . . . 689 . . . Kills 4 | . . . . . . 4 . . . Allies Corrupted 1 | . . . . . . 1 . . . Allies Melted . | . . . . . . . . . . Intel | -11 -10 -10 -9 -8 -7 -6 -5 -4 -4 ------- Run | Scr Mat Min Mat Mat Fac Fac Fac Fac Upp Robot Analysis Total . | . . . . . . . . . . Derelict Logs Recovered 1 | . . . . . . . . . 1 Drone Launches . | . . . . . . . . . . Drone Recoveries . | . . . . . . . . . . Exploration | -11 -10 -10 -9 -8 -7 -6 -5 -4 -4 ------------- Run | Scr Mat Min Mat Mat Fac Fac Fac Fac Upp Turns Passed 8045 | 3393 405 44 614 1037 178 1302 183 676 213 Spaces Moved 3156 | 700 194 28 278 450 95 571 101 365 374 Core 437 | 7 . . 5 . . . 18 33 374 Treads 1457 | 693 194 28 174 59 . . . 309 . Legs 1145 | . . . 5 391 95 571 83 . . Wheels 117 | . . . 94 . . . . 23 . Hover . | . . . . . . . . . . Flight . | . . . . . . . . . . Fastest Speed 50 | 50 160 160 90 155 185 120 50 50 50 Average Speed 145 | 158 160 160 147 165 185 165 109 147 50 Slowest Speed 500 | 160 160 160 500 190 185 210 150 200 50 Overloaded Moves . | . . . . . . . . . . Propulsion Burnouts . | . . . . . . . . . . Robots Hopped . | . . . . . . . . . . Cave-ins Triggered . | . . . . . . . . . . Exploration Rate (%) 28 | 86 47 8 30 45 3 22 4 10 34 Regions Visited 9 Branch Regions 2 Pre-discovered Areas . | . . . . . . . . . . Known Exits Taken . | . . . . . . . . . . Unknown Exits Taken 9 | 1 1 1 1 1 1 1 1 1 . Scrap Searched 1 | . . . . . . . . . 1 Spaces Dug . | . . . . . . . . . . Terrain Destroyed 183 | . . . 121 23 . 25 14 . . Melee . | . . . . . . . . . . Projectile . | . . . . . . . . . . AOE 183 | . . . 121 23 . 25 14 . . Terrain Rammed . | . . . . . . . . . . Walls Destroyed . | . . . . . . . . . . Machines Disabled . | . . . . . . . . . . Actions | -11 -10 -10 -9 -8 -7 -6 -5 -4 -4 --------- Run | Scr Mat Min Mat Mat Fac Fac Fac Fac Upp Total 6312 | 2977 245 27 422 651 98 841 163 488 400 Wait 2761 | 2261 19 . 59 102 . 165 40 90 25 Move 3147 | 699 193 27 277 449 94 570 100 364 374 Hop . | . . . . . . . . . . Pick Up 72 | 7 3 . 20 13 2 15 3 8 1 Fast Attach 18 | . . . 4 2 . 12 . . . Attach 48 | 6 2 . 5 5 2 17 3 8 . Detach . | . . . . . . . . . . Swap 37 | . 1 . 13 15 . 8 . . . Drop 44 | . . . 13 12 . 12 6 1 . Fire 170 | 4 27 . 31 53 . 39 9 7 . Melee 2 | . . . . . . . 2 . . Ram . | . . . . . . . . . . Kick 3 | . . . . . . 3 . . . Crush 10 | . . . . . . . . 10 . Escape Stasis . | . . . . . . . . . . Rewire . | . . . . . . . . . . Trap . | . . . . . . . . . . Miscellaneous . | . . . . . . . . . . Route ------- -11/Scrapyard -10/Materials -10/Mines -9/Materials -8/Materials -7/Factory -6/Factory -5/Factory -4/Factory -4/Upper Caves (discovered 1 exit: Upp) History --------- Turn | Location | Event 5 | -11/Scrapyard | Discovered new exit (range 15) 2305 | -11/Scrapyard | Assembled infested the area 3394 | -11/Scrapyard | Entered Materials 3395 | -10/Materials | Build established: Mutant 3688 | -10/Materials | Core integrity fell below 50% 3789 | -10/Materials | Discovered new exit (range 6) 3799 | -10/Materials | Entered Mines 3830 | -10/Mines | Discovered new exit (range 7) 3843 | -10/Mines | Entered Materials 3843 | -9/Materials | Evolved 2 slots: Power x1, Utility x1 4147 | -9/Materials | Lost 4 parts (1p2n1u) 4378 | -9/Materials | Discovered new exit (range 3) 4457 | -9/Materials | Entered another Materials area 4457 | -8/Materials | Evolved 2 slots: Power x1, Utility x1 5485 | -8/Materials | Discovered new exit (range 4) 5494 | -8/Materials | Entered Factory 5494 | -7/Factory | Evolved 2 slots: Utility x1, Weapon x1 5626 | -7/Factory | Discovered new exit (range 15) 5672 | -7/Factory | Entered another Factory area 5672 | -6/Factory | Evolved 2 slots: Propulsion x1, Weapon x1 5740 | -6/Factory | Allied Derelicts emerged from ambush trap array 5795 | -6/Factory | Build established: Tank 6025 | -6/Factory | Garrison activated, responded to threat 6390 | -6/Factory | Lost 10 parts (2p2n2u4w) 6871 | -6/Factory | Lost 5 parts (3p2w) 6945 | -6/Factory | Discovered new exit (range 16) 6974 | -6/Factory | Entered another Factory area 6974 | -5/Factory | Evolved 2 slots: Propulsion x1, Utility x1 7088 | -5/Factory | Discovered new exit (range 15) 7157 | -5/Factory | Entered another Factory area 7157 | -4/Factory | Evolved 2 slots: Power x1, Utility x1 7182 | -4/Factory | Lost 6 parts (2n1u3w) 7470 | -4/Factory | Build established: Mutant 7763 | -4/Factory | Garrison activated, responded to threat 7825 | -4/Factory | Discovered new exit (range 14) 7833 | -4/Factory | Entered Upper Caves 7847 | -4/Upper Caves | Lost 7 parts (1p3n1u2w) 7848 | -4/Upper Caves | Identified exit to Upper Caves 7866 | -4/Upper Caves | Spotted B-86 Titan 7923 | -4/Upper Caves | Attracted the attention of an 0b10 checkpoint 7962 | -4/Upper Caves | Core integrity fell below 50% 8013 | -4/Upper Caves | Core integrity fell below 20% 8046 | -4/Upper Caves | Destroyed by B-86 Titan with Railgun Last Messages --------------- Loading 1 Upper Caves exit... Searching scrap... Found Matter Neutralizer. Found 26 Matter. System corrupted: Heat flow error (+122). Acquired Matter Neutralizer. Acquired 26 matter. System corrupted: Matter fused (-10). Y-64 Sentinel: "INTERCEPTING UNREGISTERED DERELICT." System corrupted: Component data lost. Penetrated by Slug. F&, F<8QT System corrupted: Substantial component data lost. Penetrated by Slug. Map ----- +----------------------------------------------------+ | ?????????????????????????????????????????????????? | | ?????????????????????????????????????????????????? | | ?????????????????????????????????????????????????? | | ?????????????????????????????????????????????????? | | ?????????????????????????????????????????????????? | | ?????????????????????????????????????????????????? | | ?????????????????????????????????????????????????? | | ?????????????????????????????????????????????????? | | ?????????????????????????????????????????????????? | | ?????????????????????????????????????????????????? | | ?????????????????????????????????????????????????? | | ?????????????????????????????????????????????????? | | ??????????????????????????????????##??#######????? | | ?????????????????????????####??#### ### ###??? | | ????????????????????????## ##?# ###? | | ??????????????????????### #?# ### ## | | ?????????????????????## #?#### ##?# # | | ???????????????????### #????# ##??## # | | ??????????????????## #????# #???## # | | ?????????????????## ## #????# #??## # | | ????????????????## ## #???## ##??# ## | | ???????????????## #???# #???# ###? | | ???????????????# ##p #???# #???# ##??? | | ???????????????# ## ##### ##???# ##??? | | ???????????????## ### ## #????# ##?? | | ????????????????## ###@ ;; ##???# ### | | ?????????????????# ##?# ;; #???#" "# | | ?????????????????## ##??## #?##" # | | ??????????????????###????# BB ### # | | ?????????????????????????## BB ## # | | ??????????????????????????## ;"# | | ???????????????????????????# #; ## | | ???????????????????????????# ##### ### | | ??????????????????????????? #???# #??# | | ?????????????????????????? ## ###???# #### | | ????????????????????????? ## #?????# | | ????????????????????????? ## #?????# | | ???????????????????????? ## #?????## | | ????????????????????????# #?# #??????####"" | | ????????????????????????# #??? ?????????### | | ???????????????????????? ????# ??????????## | | ????????????????????????? ????? ??????????# ## | | ???????????????????????????????? ??????????# ## | | ???????????????????????????????????????????# | | ???????????????????????????????????????????# | | ???????????????????????????????????????????## | | ????????????????????????????????????????????## | | ?????????????????????????????????????????????# | | ?????????????????????????????????????????????# | | ????????????????????????????????????????????# | +----------------------------------------------------+ Best States ------------- Heat Dissipation 65 Coolant Potential 80 Energy Generation 36 Energy Capacity 590 Matter Stores 300 Matter Capacity 300 Sight Range 16 Terrain Scan Range 16 Terrain Scan Density 10 Jamming Range 8 Corruption Prevention 12 Heat Shielding 100 Armor Coverage 450 Evasion (%) 50 Recoil Reduction 3 Item Schematics ----------------- None Robot Schematics ------------------ None Fabricated ------------ Nothing Alien Tech Used ----------------- None Achievements -------------- Curiosity Killed The Cat It Was An Accident, I Swear No Signal Streaker Challenges ------------ None Game ------ Seed TrackerCoolingReplicator Manual? 0 Play Time 01:00:43 Cumulative 14.7 hours Start 2022.01.20 @ 16:01:35 End 2022.01.20 @ 17:06:00 Sessions 1 Manual Loads 0 Difficulty Rogue Special Mode None Game No. 29 Rogue 29 Adventurer 0 Explorer 0 Win Type - Total 0 Types 0/0/0/0/0/0/0/0/0 Lore% 16 Gallery% 19 Achievement% 16 Wizard Run 0 Options --------- ASCII 0 Keyboard 0 Movement Mouse Keybinds 0 Fullscreen 1 Font 18/SmallcapsGlow Map View 76x50 Tactical HUD 0 Map Filters NONE Filters NONE Steam 1 RUN: 4594153d-d0f6-4d5e-9b83-89fb5d95ffb6